bitfinex/quotes_ETHUSD_20251201
["timestamp","ask_amount","ask_price","bid_price","bid_amount"]
[1764568079952,0.002,2831.7,2831.6,8.75560391]
[1764568080549,0.002,2831.7,2831.6,13.01277027]
[1764568081192,0.002,2831.7,2831.6,4.25716636]
[1764568084670,0.002,2831.7,2831.6,4.6932019]
[1764568084870,0.002,2831.7,2831.6,5.53859178]
[1764568085096,0.002,2831.7,2831.6,5.10255624]
[1764568085902,0.002,2831.7,2831.6,4.25716636]
[1764568086101,0.002,2831.7,2831.6,4.29248208]
[1764568086305,0.002,2831.7,2831.6,13.04808599]
[1764568086507,0.002,2831.7,2831.6,13.01277027]
[1764568087911,0.002,2831.7,2831.6,4.25716636]
[1764568088207,0.002,2831.7,2831.6,4.29248208]
[1764568088410,0.002,2831.7,2831.6,3.53157225]
[1764568088702,0.002,2831.7,2831.6,4.25716636]
[1764568089706,0.002,2831.7,2831.6,5.44155669]
[1764568089877,0.002,2832.2,2832.0,0.72559411]
[1764568090080,0.002,2832.2,2831.7,0.72559411]
[1764568090301,0.002,2832.2,2831.8,0.229]
[1764568090491,0.002,2832.2,2831.9,0.03531198]
[1764568090875,0.002,2832.2,2832.1,0.72559411]
[1764568091076,0.002,2832.2,2832.1,0.76090359]
[1764568091906,0.002,2832.2,2832.1,0.72559411]
[1764568092281,0.002,2832.2,2832.1,0.76090359]
[1764568092807,0.002,2832.2,2832.1,4.29185235]
[1764568093405,0.002,2832.2,2832.1,4.25654287]
[1764568093611,0.002,2832.2,2832.1,5.0353045]
[1764568094520,0.002,2832.2,2832.1,4.25654287]
[1764568095176,0.9553,2832.2,2832.1,4.25654287]
[1764568095904,0.4946,2832.2,2832.1,4.25654287]
[1764568096091,0.002,2832.2,2832.1,4.29185235]
[1764568096291,0.002,2832.2,2832.1,4.25654287]
[1764568096492,0.002,2832.2,2832.1,5.13027202]
[1764568097276,0.002,2832.2,2832.1,4.25654287]
[1764568097678,0.9553,2832.2,2832.1,4.25654287]
[1764568098298,0.9553,2832.2,2832.1,3.53094876]
[1764568099307,0.9553,2832.2,2831.9,7.06239626]
[1764568099515,0.4607,2832.1,2832.0,0.03531073]
[1764568099912,0.9533,2832.1,2831.9,7.06239626]
[1764568100088,0.4926,2832.0,2831.9,3.53119813]
[1764568100289,0.9533,2832.0,2831.9,3.53119813]
[1764568101389,0.9533,2832.0,2831.8,7.06263794]
[1764568101805,0.4926,2831.9,2831.8,4.4809903]
[1764568101995,0.4926,2831.9,2831.8,3.53131511]
[1764568102199,0.6826,2831.9,2831.8,4.4809903]
[1764568102401,0.4607,2832.1,2831.8,7.09795116]
[1764568102616,0.4607,2832.1,2831.8,8.00754303]
[1764568103221,0.4607,2832.1,2831.9,0.94490509]
[1764568103519,0.4607,2832.1,2832.0,3.56638417]
[1764568104017,0.9513,2832.1,2832.0,3.56638417]
[1764568104316,1.30494028,2832.1,2832.0,3.56638417]
[1764568105625,1.30494028,2832.1,2832.0,3.53107344]
[1764568105811,0.9575,2832.1,2832.0,3.53107344]
[1764568106006,0.9575,2832.1,2832.0,3.56638417]
[1764568106219,0.9575,2832.1,2832.0,3.53107344]
[1764568106614,0.9575,2832.1,2832.0,3.56638417]
[1764568106810,1.31114028,2832.1,2832.0,3.56638417]
[1764568107121,0.9575,2832.1,2831.9,7.06239626]
[1764568107426,0.9465,2832.0,2831.9,3.53119813]
[1764568107612,0.9465,2832.0,2831.9,2.87312]
[1764568108402,0.4796,2832.0,2831.9,2.87312]
[1764568108797,0.4796,2832.0,2831.9,2.90843198]
[1764568108995,0.4689,2832.2,2831.9,3.85333707]
[1764568109304,0.002,2832.2,2832.1,0.94490509]
[1764568109508,0.002,2832.2,2832.1,0.98021457]
[1764568109705,0.4816,2832.2,2832.1,4.51116333]
[1764568110101,0.9485,2832.2,2832.1,4.51116333]
[1764568110298,0.4816,2832.2,2832.1,4.51116333]
[1764568110633,0.4816,2832.2,2832.1,3.53094876]
[1764568110839,0.002,2832.2,2832.1,3.53094876]
[1764568111296,0.4816,2832.2,2832.1,3.53094876]
[1764568111497,0.9485,2832.2,2832.1,4.47992136]
[1764568112437,0.002,2832.2,2832.1,4.51523084]
[1764568112810,0.4816,2832.2,2832.1,4.51523084]
[1764568113239,0.9485,2832.2,2832.1,4.51523084]
[1764568113750,0.9485,2832.2,2832.1,4.47992136]
[1764568114545,1.30214028,2832.2,2832.1,4.47992136]
[1764568115043,1.30214028,2832.2,2832.1,3.53094876]
[1764568115407,1.30214028,2832.2,2832.1,3.56625824]
[1764568115834,0.9485,2832.2,2832.1,3.56625824]
[1764568116136,0.4816,2832.2,2832.1,3.56625824]
[1764568116648,0.002,2832.2,2832.1,3.56625824]
[1764568117447,0.4816,2832.2,2832.1,3.56625824]
[1764568117629,0.9485,2832.2,2832.1,3.53094876]
[1764568118215,0.9485,2832.2,2832.1,3.56625824]
[1764568118216,0.4816,2832.2,2832.1,3.56625824]
[1764568118715,0.9485,2832.2,2832.1,3.56625824]
[1764568118916,1.30214028,2832.2,2832.1,3.53094876]
[1764568120252,0.9485,2832.2,2832.1,3.56625824]
[1764568120819,0.4816,2832.2,2832.1,3.56625824]
[1764568121024,0.4816,2832.2,2832.1,3.53094876]
[1764568121219,0.9485,2832.2,2832.1,3.53094876]
[1764568121650,1.30214028,2832.2,2832.0,4.47999686]
[1764568121837,0.9465,2832.1,2832.0,4.47999686]
[1764568123457,1.30014028,2832.1,2832.0,4.47999686]
[1764568123755,0.9465,2832.1,2832.0,4.47999686]
[1764568124757,1.30014028,2832.1,2832.0,4.48004604]
[1764568125157,0.9465,2832.1,2832.0,4.48004604]
[1764568125349,0.9465,2832.1,2832.0,3.53107344]
[1764568125827,1.30014028,2832.1,2832.0,3.53107344]
[1764568126159,1.30014028,2832.1,2832.0,4.48004604]
[1764568126762,0.002,2832.2,2832.0,8.9391246]
[1764568127059,0.002,2832.2,2832.1,1.13109811]
[1764568127257,0.002,2832.2,2832.1,1.53609713]
[1764568128761,0.002,2832.2,2832.1,5.10235537]
[1764568129158,0.135,2833.4,2832.2,0.405504]
[1764568129351,0.135,2833.4,2832.9,0.94719184]
[1764568129546,0.135,2833.4,2833.0,0.94719184]
[1764568129750,0.6019,2833.4,2833.0,0.94719184]
[1764568129961,0.135,2833.4,2832.9,0.94719184]
[1764568130332,0.4796,2833.0,2832.8,0.94719184]
[1764568130540,0.4669,2833.3,2832.8,0.94719184]
[1764568130846,0.4669,2833.3,2832.9,10.58985489]
[1764568131749,0.135,2833.4,2832.9,10.58985489]
[1764568131950,0.01,2833.6,2833.0,8.03451899]
[1764568132151,0.237,2833.6,2833.0,8.03451899]
[1764568132362,0.01,2833.6,2833.0,8.03451899]
[1764568132563,0.227,2833.6,2833.0,8.98171083]
[1764568132763,0.01,2833.7,2833.1,0.72559411]
[1764568132965,0.227,2833.6,2833.2,10.58873358]
[1764568133168,0.01,2833.7,2833.2,10.58873358]
[1764568135970,0.237,2833.7,2833.2,10.58873358]
[1764568137960,0.01,2833.7,2833.2,10.58873358]
[1764568138164,0.237,2833.7,2833.2,10.58873358]
[1764568138469,0.7333,2833.7,2833.2,11.5167387]
[1764568139064,0.7333,2833.7,2833.2,10.58873358]
[1764568139665,0.7333,2833.7,2833.3,0.03529453]
[1764568140866,0.4729,2833.4,2833.2,7.05915572]
[1764568141067,0.4729,2833.3,2833.2,3.52957786]
[1764568141257,0.4963,2833.6,2833.2,10.58873358]
[1764568141571,4.25330363,2834.8,2833.2,10.58873358]
[1764568141572,0.4963,2834.9,2833.5,0.405504]
[1764568141738,0.4963,2834.9,2834.0,8.03451899]
[1764568141934,0.417,2835.2,2833.7,1.66723786]
[1764568142147,0.417,2835.2,2834.1,0.405504]
[1764568142148,0.4963,2834.9,2834.1,0.405504]
[1764568142474,0.4963,2834.8,2833.9,0.94164375]
[1764568142765,0.002,2834.0,2833.9,0.94164375]
[1764568142966,0.002,2834.0,2833.9,1.98825227]
[1764568143370,0.002,2834.0,2833.9,3.52870602]
[1764568143940,0.002,2834.0,2833.9,3.56399308]
[1764568144340,0.002,2834.0,2833.9,4.65980413]
[1764568144645,0.002,2834.0,2833.9,4.25430013]
[1764568145042,0.002,2834.0,2833.9,4.28958719]
[1764568145265,0.002,2834.0,2833.9,5.16559299]
[1764568146370,0.002,2834.0,2833.9,5.57109699]
[1764568146669,0.002,2834.0,2833.9,5.16559299]
[1764568147239,0.002,2834.0,2833.9,4.25430013]
[1764568147472,0.002,2834.0,2833.9,4.28958719]
[1764568147637,0.002,2834.0,2833.9,4.25430013]
[1764568148566,0.002,2834.0,2833.9,3.52870602]
[1764568148782,0.002,2834.0,2833.9,3.56399308]
[1764568148941,0.002,2834.0,2833.9,4.27327509]
[1764568149148,0.002,2834.0,2833.9,3.56399308]
[1764568149359,0.002,2834.0,2833.9,3.52870602]
[1764568149547,0.9712,2834.0,2833.7,7.05791014]
[1764568149743,0.4749,2834.0,2833.7,7.05791014]
[1764568150441,0.4749,2834.0,2833.8,0.0352883]
[1764568150943,0.6679,2833.9,2833.7,7.05791014]
[1764568151143,0.002,2834.0,2833.8,0.76088241]
[1764568151440,0.002,2834.0,2833.9,3.52870602]
[1764568151843,0.4749,2834.0,2833.9,3.56399308]
[1764568152045,0.9712,2834.0,2833.9,3.52870602]
[1764568152245,0.002,2834.0,2833.9,3.56399308]
[1764568152473,0.002,2834.0,2833.9,3.52870602]
[1764568153872,0.002,2834.0,2833.9,5.03791099]
[1764568154246,0.002,2834.0,2833.9,3.52870602]
[1764568154549,0.002,2834.0,2833.9,2.90319602]
[1764568156658,0.002,2834.0,2833.9,3.84483977]
[1764568157984,0.4749,2834.0,2833.9,3.84483977]
[1764568158185,0.002,2834.0,2833.9,3.84483977]
[1764568159287,0.4749,2834.0,2833.9,3.84483977]
[1764568159656,0.9712,2834.0,2833.9,3.84483977]
[1764568159983,0.9712,2834.0,2833.9,2.90319602]
[1764568160182,0.9712,2834.0,2833.9,2.93848308]
[1764568160183,0.002,2834.0,2833.9,2.93848308]
[1764568160369,0.002,2834.0,2833.9,3.88012683]
[1764568160557,0.9712,2834.0,2833.9,3.88012683]
[1764568161502,0.9712,2834.0,2833.9,3.84483977]
[1764568162088,0.9712,2834.0,2833.9,2.90319602]
[1764568163288,0.9712,2834.0,2833.9,3.84483977]
[1764568164158,0.4749,2834.0,2833.9,3.84483977]
[1764568164484,0.9677,2834.0,2833.9,10.38891645]
[1764568164790,0.9677,2834.0,2833.9,3.84483977]
[1764568166866,0.9677,2834.0,2833.9,2.90319602]
[1764568167265,0.9677,2834.0,2833.9,3.84483977]
[1764568169293,0.9677,2834.0,2833.9,2.90319602]
[1764568169661,0.9677,2834.0,2833.9,3.85062474]
[1764568171093,0.4749,2834.0,2833.9,3.85062474]
[1764568171292,0.9477,2834.0,2833.9,3.85062474]
[1764568171663,1.1737,2834.0,2833.7,3.52894051]
[1764568171858,0.5328,2833.8,2833.7,3.52894051]
[1764568172389,0.5328,2833.8,2833.6,3.53006562]
[1764568172390,1.0056,2833.8,2833.6,0.001]
[1764568172591,0.4685,2833.7,2833.6,0.001]
[1764568172794,0.9413,2833.7,2833.6,0.001]
[1764568173395,1.29494028,2833.7,2833.6,0.001]
[1764568174887,11.87014776,2833.7,2833.6,0.001]
[1764568175086,2.74871012,2833.7,2833.6,0.001]
[1764568175396,6.27766519,2833.7,2833.6,0.001]
[1764568175706,2.74871012,2833.7,2833.6,0.001]
[1764568175880,6.27766519,2833.7,2833.6,0.001]
[1764568177002,0.336,2833.5,2832.3,7.06139886]
[1764568177302,0.6733,2832.4,2832.3,3.53069943]
[1764568177503,0.4752,2832.4,2832.3,3.53069943]
[1764568178202,0.1981,2833.4,2832.3,11.50379829]
[1764568178373,0.1981,2833.4,2832.6,10.59097647]
[1764568178568,0.6709,2833.4,2832.7,0.035302]
[1764568179086,0.4728,2833.3,2832.7,0.035302]
[1764568179270,0.82644028,2833.3,2832.6,10.59097647]
[1764568179471,0.82644028,2833.3,2832.7,0.035302]
[1764568179679,0.4728,2833.2,2832.7,0.035302]
[1764568179880,0.227,2833.1,2832.7,0.035302]
[1764568180403,0.6998,2833.1,2832.8,0.001]
[1764568180600,0.6998,2833.1,2832.8,7.06115248]
[1764568180800,0.6998,2833.1,2832.9,0.03529951]
[1764568180968,0.6998,2833.1,2832.8,3.53107624]
[1764568180969,0.6733,2832.9,2832.8,3.53107624]
[1764568181392,1.1461,2832.9,2832.8,3.53107624]
[1764568181579,0.1981,2833.4,2832.8,7.09645324]
[1764568181897,0.226,2833.2,2832.8,7.06115248]
[1764568182085,0.57964028,2833.2,2832.8,7.06115248]
[1764568182291,0.6988,2833.2,2832.9,0.03529951]
[1764568182501,0.6988,2833.2,2832.8,0.001]
[1764568182667,0.4728,2833.1,2832.8,0.001]
[1764568183004,0.4752,2832.9,2832.8,0.001]
[1764568183601,1.1461,2832.9,2832.8,0.001]
[1764568183803,1.49974028,2832.9,2832.8,0.001]
[1764568184099,1.1461,2832.9,2832.8,0.001]
[1764568184721,1.49974028,2832.9,2832.8,0.001]
[1764568185099,1.1461,2832.9,2832.8,0.001]
[1764568185307,1.49974028,2832.9,2832.8,0.001]
[1764568187606,2.02530508,2832.9,2832.8,0.001]
[1764568188404,1.49974028,2832.9,2832.8,0.001]
[1764568198515,5.02969191,2832.9,2832.8,0.001]
[1764568199198,1.49974028,2832.9,2832.8,0.001]
[1764568201224,5.75528602,2832.9,2832.8,0.001]
[1764568201430,1.49974028,2832.9,2832.8,0.001]
[1764568201638,6.70638271,2832.9,2832.8,0.001]
[1764568201833,3.17643108,2832.9,2832.8,0.001]
[1764568202034,6.70638271,2832.9,2832.8,0.001]
[1764568204227,6.93238271,2832.9,2832.8,0.001]
[1764568205044,0.75914428,2832.6,2832.5,0.001]
[1764568205339,28.75615874,2832.6,2832.5,0.001]
[1764568205532,23.497621,2832.6,2832.5,0.001]
[1764568205922,32.360407,2832.6,2832.5,0.001]
[1764568206118,32.601114,2832.6,2832.5,0.001]
[1764568206322,36.02553698,2832.6,2832.5,0.001]
[1764568206911,35.44188098,2832.6,2832.5,0.001]
[1764568207112,17.93578998,2832.6,2832.5,0.001]
[1764568207344,34.74382398,2832.6,2832.5,0.001]
[1764568208267,35.27252398,2832.6,2832.5,0.001]
[1764568208414,5.27575737,2832.6,2832.5,0.001]
[1764568208616,4.13225839,2832.6,2832.5,0.001]
[1764568208811,7.66258388,2832.6,2832.5,0.001]
[1764568209744,7.43658388,2832.6,2832.5,0.001]
[1764568210055,29.33241872,2832.6,2832.5,0.001]
[1764568210216,22.908123,2832.6,2832.5,0.001]
[1764568210411,16.8970763,2832.6,2832.5,0.001]
[1764568210952,17.09688314,2832.6,2832.5,0.001]
[1764568211243,44.84454313,2832.6,2832.5,0.001]
[1764568212019,0.405504,2832.3,2832.1,0.001]
[1764568212214,21.75168739,2832.2,2832.1,0.001]
[1764568212420,27.53023963,2832.2,2832.1,0.001]
[1764568212620,25.40479163,2832.2,2832.1,0.001]
[1764568213047,15.23240963,2832.2,2832.1,0.001]
[1764568214018,24.41829163,2832.2,2832.1,0.001]
[1764568214219,24.03349163,2832.2,2832.1,0.001]
[1764568215149,24.41829163,2832.2,2832.1,0.001]
[1764568215524,8.40569063,2832.2,2832.1,0.001]
[1764568215721,6.15796248,2832.2,2832.1,0.001]
[1764568216049,17.97844648,2832.2,2832.1,0.001]
[1764568216349,17.17316548,2832.2,2832.1,0.001]
[1764568217052,17.74107648,2832.2,2832.1,0.001]
[1764568217353,13.68878448,2832.2,2832.1,0.001]
[1764568217541,15.63673336,2832.2,2832.1,0.001]
[1764568218155,18.60409736,2832.2,2832.1,0.001]
[1764568218552,16.99951536,2832.2,2832.1,0.001]
[1764568219234,20.80255836,2832.2,2832.1,0.001]
[1764568219634,13.20529636,2832.2,2832.1,0.001]
[1764568220245,21.27995436,2832.2,2832.1,0.001]
[1764568220446,20.33995436,2832.2,2832.1,0.001]
[1764568221341,21.12849036,2832.2,2832.1,0.001]
[1764568221744,20.18849036,2832.2,2832.1,0.001]
[1764568222033,7.24840736,2832.2,2832.1,0.001]
[1764568222429,10.43209636,2832.2,2832.1,0.001]
[1764568223258,7.47440736,2832.2,2832.1,0.001]
[1764568223452,24.49436836,2832.2,2832.1,0.001]
[1764568223639,20.01096036,2832.2,2832.1,0.001]
[1764568224150,20.41646436,2832.2,2832.1,0.001]
[1764568224352,23.49981436,2832.2,2832.1,0.001]
[1764568224553,20.82696036,2832.2,2832.1,0.001]
[1764568225254,21.23246436,2832.2,2832.1,0.001]
[1764568225462,24.58682036,2832.2,2832.1,0.001]
[1764568225872,23.64682036,2832.2,2832.1,0.001]
[1764568226375,24.55218236,2832.2,2832.1,0.001]
[1764568226866,23.61218236,2832.2,2832.1,0.001]
[1764568227273,15.91457136,2832.2,2832.1,0.001]
[1764568228437,7.87991136,2832.2,2832.1,0.001]
[1764568228638,34.48446636,2832.2,2832.1,0.001]
[1764568229659,35.77469936,2832.2,2832.1,0.001]
[1764568229861,35.38989936,2832.2,2832.1,0.001]
[1764568230667,35.77469936,2832.2,2832.1,0.001]
[1764568231363,34.83469936,2832.2,2832.1,0.001]
[1764568231767,35.76469936,2832.2,2832.1,0.001]
[1764568232631,35.73019936,2832.2,2832.1,0.001]
[1764568233595,34.62273936,2832.2,2832.1,0.001]
[1764568233805,26.68197236,2832.2,2832.1,0.001]
[1764568234002,26.73676836,2832.2,2832.1,0.001]
[1764568234767,28.37535636,2832.2,2832.1,0.001]
[1764568234966,27.68905636,2832.2,2832.1,0.001]
[1764568235167,27.91505636,2832.2,2832.1,0.001]
[1764568235408,28.37535636,2832.2,2832.1,0.001]
[1764568235761,31.55671307,2832.2,2832.1,0.001]
[1764568235957,29.99852536,2832.2,2832.1,0.001]
[1764568236905,30.93852536,2832.2,2832.1,0.001]
[1764568237895,31.07109036,2832.2,2832.1,0.001]
[1764568238107,30.13109036,2832.2,2832.1,0.001]
[1764568238899,7.88261136,2832.2,2832.1,0.001]
[1764568239122,31.00345336,2832.2,2832.1,0.001]
[1764568240890,35.57653936,2832.2,2832.1,0.001]
[1764568241098,31.96916236,2832.2,2832.1,0.001]
[1764568241911,7.88261136,2832.2,2832.1,0.001]
[1764568242117,31.96916236,2832.2,2832.1,0.001]
[1764568242613,32.54535007,2832.2,2832.1,0.001]
[1764568243080,38.45879907,2832.2,2832.1,0.001]
[1764568244380,51.57913407,2832.2,2832.1,0.001]
[1764568244786,31.13109811,2832.0,2831.9,0.001]
[1764568245003,33.06006189,2832.0,2831.9,0.001]
[1764568245279,33.52036189,2832.0,2831.9,0.001]
[1764568246213,46.5741669,2832.0,2831.9,0.001]
[1764568246587,43.54507284,2832.0,2831.9,0.001]
[1764568246795,46.25173003,2832.0,2831.9,0.001]
[1764568248012,22.81189753,2832.0,2831.9,0.001]
[1764568248318,46.25173003,2832.0,2831.9,0.001]
[1764568249131,40.03956303,2832.0,2831.9,0.001]
[1764568250014,46.59973053,2832.0,2831.9,0.001]
[1764568250196,52.81189753,2832.0,2831.9,0.001]
[1764568251481,52.10513953,2832.0,2831.9,0.001]
[1764568251717,41.54218003,2832.0,2831.9,0.001]
[1764568251911,16.25173003,2832.0,2831.9,0.001]
[1764568252415,36.07156303,2832.0,2831.9,0.001]
[1764568253217,38.17109023,2832.0,2831.9,0.001]
[1764568254212,39.05447323,2832.0,2831.9,0.001]
[1764568254415,36.70139023,2832.0,2831.9,0.001]
[1764568254726,35.16239023,2832.0,2831.9,0.001]
[1764568254903,19.72035952,2832.0,2831.9,0.001]
[1764568255087,20.21235952,2832.0,2831.9,0.001]
[1764568255289,34.50141352,2832.0,2831.9,0.001]
[1764568255492,33.56141352,2832.0,2831.9,0.001]
[1764568256320,36.40359452,2832.0,2831.9,0.001]
[1764568256520,35.99778223,2832.0,2831.9,0.001]
[1764568256916,35.61018223,2832.0,2831.9,0.001]
[1764568257706,33.99648223,2832.0,2831.9,0.001]
[1764568257909,25.78236023,2832.0,2831.9,0.001]
[1764568258104,25.29036023,2832.0,2831.9,0.001]
[1764568258428,23.59828123,2832.0,2831.9,0.001]
[1764568258725,21.91857723,2832.0,2831.9,0.001]
[1764568258919,22.41057723,2832.0,2831.9,0.001]
[1764568259225,33.22657323,2832.0,2831.9,0.001]
[1764568259409,33.00057323,2832.0,2831.9,0.001]
[1764568259604,32.05087323,2832.0,2831.9,0.4538]
[1764568259809,27.48348252,2832.0,2831.9,0.4538]
[1764568260223,26.30561252,2832.0,2831.9,0.4538]
[1764568260454,0.35364028,2832.2,2831.9,0.9153]
[1764568260599,3.53245732,2832.5,2832.1,0.6195]
[1764568260800,1.08123439,2832.5,2832.4,0.4528]
[1764568260996,0.58164028,2832.5,2832.4,0.4528]
[1764568261234,0.58164028,2832.5,2832.4,0.9143]
[1764568261397,0.002,2832.5,2832.4,0.9143]
[1764568261596,0.58164028,2832.5,2832.4,0.9143]
[1764568262320,1.30723439,2832.5,2832.4,0.9143]
[1764568262520,4.83768452,2832.5,2832.4,0.9143]
[1764568262714,6.3304922,2832.5,2832.4,0.4528]
[1764568263332,0.35364028,2832.2,2832.1,0.6282]
[1764568263503,1.07923439,2832.2,2832.1,0.1667]
[1764568263698,4.61005848,2832.2,2832.1,0.6195]
[1764568265234,4.61005848,2832.2,2832.1,1.081]
[1764568265427,6.12069214,2832.2,2832.1,0.6195]
[1764568265742,15.673796,2832.1,2831.9,0.001]
[1764568265904,8.27090589,2832.0,2831.9,1.231]
[1764568266346,8.27090589,2832.0,2831.9,1.6838]
[1764568267328,0.57964028,2832.0,2831.9,3.3753]
[1764568267908,6.4800762,2832.0,2831.9,2.9138]
[1764568268605,6.4800762,2832.0,2831.9,4.1438]
[1764568270112,6.4800762,2832.0,2831.9,5.3738]
[1764568271520,6.4800762,2832.0,2831.9,6.6038]
[1764568271971,6.2540762,2832.0,2831.9,6.6038]
[1764568272175,6.4800762,2832.0,2831.9,6.6038]
[1764568272649,21.4926712,2832.0,2831.9,6.6038]
[1764568272856,21.9689712,2832.0,2831.9,7.381]
[1764568273245,21.6131572,2832.0,2831.9,7.381]
[1764568273574,20.9108572,2832.0,2831.9,7.381]
[1764568273726,21.1368572,2832.0,2831.9,7.381]
[1764568274224,21.1368572,2832.0,2831.9,8.611]
[1764568274822,21.6131572,2832.0,2831.9,8.611]
[1764568275156,8.33593992,2832.0,2831.9,9.0638]
[1764568275358,8.9155802,2832.0,2831.9,9.0638]
[1764568275657,8.9155802,2832.0,2831.9,10.2938]
[1764568275959,9.7140502,2832.0,2831.9,10.2938]
[1764568276256,11.4296732,2832.0,2831.9,10.2938]
[1764568276426,10.4896732,2832.0,2831.9,10.2938]
[1764568277153,10.4896732,2832.0,2831.9,11.5238]
[1764568278455,10.4896732,2832.0,2831.9,12.7538]
[1764568278663,10.9659732,2832.0,2831.9,12.301]
[1764568279259,10.4896732,2832.0,2831.9,12.301]
[1764568279456,10.4896732,2832.0,2831.9,12.7538]
[1764568280058,10.4896732,2832.0,2831.9,13.531]
[1764568280356,9.76407909,2832.0,2831.9,13.9838]
[1764568280557,8.84590483,2832.0,2831.9,13.9838]
[1764568281643,8.84590483,2832.0,2831.9,15.2138]
[1764568283144,8.84590483,2832.0,2831.9,16.4438]
[1764568283860,8.84790483,2832.0,2831.9,16.4438]
[1764568284372,5.24381183,2832.0,2831.9,17.6738]
[1764568284535,11.24205033,2832.0,2831.9,17.6738]
[1764568285628,10.30836933,2832.0,2831.9,17.6738]
[1764568285840,10.30836933,2832.0,2831.9,18.9038]
[1764568286042,5.92248633,2832.0,2831.9,18.9038]
[1764568286455,9.01306633,2832.0,2831.9,18.9038]
[1764568286758,5.92248633,2832.0,2831.9,18.9038]
[1764568287368,5.92248633,2832.0,2831.9,20.1338]
[1764568287547,4.83830783,2832.0,2831.9,20.5849]
[1764568288938,4.83830783,2832.0,2831.9,21.3638]
[1764568290347,4.83830783,2832.0,2831.9,22.5938]
[1764568291368,4.83830783,2832.0,2831.9,22.141]
[1764568291565,5.31920783,2832.0,2831.9,22.141]
[1764568291866,5.31920783,2832.0,2831.9,23.371]
[1764568291867,7.37306122,2832.0,2831.9,23.371]
[1764568293269,7.37306122,2832.0,2831.9,24.601]
[1764568293970,7.77856522,2832.0,2831.9,24.601]
[1764568294542,7.77856522,2832.0,2831.9,25.831]
[1764568294771,7.31236522,2832.0,2831.9,25.831]
[1764568296176,7.31236522,2832.0,2831.9,27.061]
[1764568296847,6.42596122,2832.0,2831.9,27.5364]
[1764568297173,4.83830783,2832.0,2831.9,27.5364]
[1764568297374,4.83830783,2832.0,2831.9,28.7664]
[1764568297681,4.83830783,2832.0,2831.9,29.2175]
[1764568298882,4.83830783,2832.0,2831.9,30.4475]
[1764568299070,4.83830783,2832.0,2831.9,29.9964]
[1764568300279,4.83830783,2832.0,2831.9,30.751]
[1764568300456,1.08123439,2832.0,2831.9,31.2264]
[1764568300785,0.72759411,2832.0,2831.9,31.6775]
[1764568300972,0.80359411,2832.0,2831.9,38.37654813]
[1764568301177,1.15723439,2832.0,2831.9,34.84535]
[1764568301983,4.68830783,2832.0,2831.9,32.4564]
[1764568302170,1.15723439,2832.0,2831.9,32.4564]
[1764568303280,0.93123439,2832.0,2831.9,32.4564]
[1764568303485,1.15723439,2832.0,2831.9,34.1375]
[1764568304233,0.80359411,2832.0,2831.9,37.66869813]
[1764568304356,0.80359411,2832.0,2831.9,41.09312111]
[1764568304892,1.15723439,2832.0,2831.9,42.32312111]
[1764568305984,0.93123439,2832.0,2831.9,42.32312111]
[1764568306284,1.15723439,2832.0,2831.9,43.55312111]
[1764568307084,0.002,2832.0,2831.9,43.55312111]
[1764568307291,0.228,2832.0,2831.9,43.55312111]
[1764568307472,0.228,2832.0,2831.9,44.78312111]
[1764568309029,0.228,2832.0,2831.9,42.03082298]
[1764568309178,0.58164028,2832.0,2831.9,38.6064]
[1764568310286,0.58164028,2832.0,2831.9,39.0575]
[1764568310498,0.58164028,2832.0,2831.9,40.2875]
[1764568311197,0.58164028,2832.0,2831.9,43.71192298]
[1764568311897,0.58164028,2832.0,2831.9,44.94192298]
[1764568312791,0.58164028,2832.0,2831.9,44.49082298]
[1764568313300,0.58164028,2832.0,2831.9,45.72082298]
[1764568313706,0.58164028,2832.0,2831.9,46.17982298]
[1764568314709,0.58164028,2832.0,2831.9,47.40982298]
[1764568316212,0.35564028,2832.0,2831.9,47.40982298]
[1764568316394,0.58164028,2832.0,2831.9,48.63982298]
[1764568318141,0.002,2832.0,2831.9,52.17102111]
[1764568318299,0.228,2832.0,2831.9,59.72453093]
[1764568318626,0.228,2832.0,2831.9,53.40102111]
[1764568320247,0.228,2832.0,2831.9,54.63102111]
[1764568321091,0.002,2832.0,2831.9,55.03652511]
[1764568321292,0.002,2832.0,2831.9,56.26652511]
[1764568321815,0.002,2832.3,2832.0,0.405504]
[1764568321998,0.002,2832.3,2832.2,6.98440982]
[1764568322512,0.002,2832.3,2832.2,10.97423391]
[1764568322707,0.002,2832.3,2832.2,12.20423391]
[1764568323491,0.002,2832.3,2832.2,5.88072409]
[1764568323913,0.002,2832.3,2832.2,7.14603233]
[1764568324119,0.002,2832.3,2832.2,14.67485122]
[1764568325419,0.002,2832.3,2832.2,15.90485122]
[1764568326321,0.002,2832.3,2832.2,19.75485122]
[1764568326692,0.002,2832.3,2832.2,20.98485122]
[1764568327690,0.002,2832.3,2832.2,14.6613414]
[1764568328095,0.002,2832.3,2832.2,15.8913414]
[1764568329715,0.002,2832.3,2832.2,17.1213414]
[1764568330414,0.002,2832.3,2832.2,16.6623414]
[1764568331025,0.002,2832.3,2832.2,17.8923414]
[1764568332025,0.002,2832.3,2832.2,17.7256414]
[1764568332196,0.002,2832.3,2832.2,13.8756414]
[1764568332396,0.002,2832.3,2832.2,15.1056414]
[1764568332797,0.82704028,2832.3,2832.2,13.37082409]
[1764568333496,1.31634028,2832.3,2832.2,9.84]
[1764568333691,2.04193439,2832.3,2832.2,11.07]
[1764568333914,5.57263382,2832.3,2832.2,11.07]
[1764568334426,1.31634028,2832.3,2832.2,11.07]
[1764568334816,1.87379587,2832.3,2832.2,11.07]
[1764568335129,6.13008941,2832.3,2832.2,12.3]
[1764568335432,6.53559341,2832.3,2832.2,12.3]
[1764568336031,30.64594341,2832.3,2832.2,12.3]